bitfinex-derivatives/quotes_BTCF0:USTF0_20251225
["timestamp","ask_amount","ask_price","bid_price","bid_amount"]
[1766704416593,0.15408,87791.0,87774.0,0.0114008]
[1766704416794,0.1654787,87791.0,87773.0,0.00227862]
[1766704418393,0.15408,87791.0,87774.0,0.0114008]
[1766704420192,0.0113991,87788.0,87773.0,0.00227862]
[1766704420593,0.1654786,87791.0,87773.0,0.00227862]
[1766704421899,0.15408,87791.0,87774.0,0.0114008]
[1766704423291,0.15408,87791.0,87773.0,0.00227862]
[1766704424504,0.15408,87791.0,87773.0,0.01367942]
[1766704425204,0.01156911,87794.0,87773.0,0.01367942]
[1766704425406,0.15408,87793.0,87773.0,0.00227862]
[1766704425709,0.0572,87792.0,87777.0,0.0114003]
[1766704426005,0.15408,87791.0,87779.0,0.0114001]
[1766704426501,0.00017081,87794.0,87779.0,0.0114001]
[1766704426811,0.15408,87793.0,87779.0,0.0114001]
[1766704430006,0.15408,87793.0,87776.0,0.0114005]
[1766704432900,0.15408,87793.0,87778.0,0.0114003]
[1766704434116,0.15408,87793.0,87779.0,0.03073023]
[1766704434810,0.00017081,87794.0,87779.0,0.03073023]
[1766704435117,0.0572,87792.0,87779.0,0.03073023]
[1766704436215,0.0572,87792.0,87778.0,0.04213053]
[1766704437214,0.0572,87792.0,87779.0,0.03073023]
[1766704439321,0.0572,87792.0,87779.0,0.02968023]
[1766704439511,0.0113986,87791.0,87779.0,0.02968023]
[1766704440207,0.0113986,87791.0,87775.0,0.0114006]
[1766704440911,0.0572,87792.0,87775.0,0.0114006]
[1766704441513,0.0572,87791.0,87775.0,0.0114006]
[1766704441710,0.09692,87790.0,87775.0,0.0114006]
[1766704441905,0.0113992,87787.0,87773.0,0.06357611]
[1766704442111,0.0113992,87787.0,87773.0,0.00227862]
[1766704442409,0.0114012,87771.0,87752.0,0.1317036]
[1766704442613,0.15412,87770.0,87754.0,0.0114033]
[1766704442814,0.15412,87769.0,87757.0,0.04104896]
[1766704443114,0.09692,87768.0,87756.0,0.04104896]
[1766704443316,0.0572,87776.0,87754.0,0.04104896]
[1766704443514,0.00017092,87771.0,87755.0,0.04104896]
[1766704443710,0.0572,87770.0,87761.0,0.0114025]
[1766704445004,0.0572,87770.0,87760.0,0.1235238]
[1766704445811,0.0572,87770.0,87755.0,0.0114032]
[1766704446318,0.15412,87769.0,87755.0,0.0114032]
[1766704446911,0.15412,87769.0,87759.0,0.1235238]
[1766704447112,0.0572,87768.0,87753.0,0.00011513]
[1766704447422,0.15412,87768.0,87753.0,0.00011513]
[1766704447607,0.00017092,87771.0,87753.0,0.00011513]
[1766704447808,0.15412,87770.0,87753.0,0.00011513]
[1766704448012,0.15412,87770.0,87754.0,0.0114034]
[1766704449223,0.011402,87766.0,87753.0,0.00011513]
[1766704451413,0.011402,87766.0,87750.0,0.1235238]
[1766704451915,0.011402,87766.0,87746.0,0.0114044]
[1766704452121,0.011402,87766.0,87750.0,0.1235238]
[1766704453525,0.2776438,87770.0,87746.0,0.0114044]
[1766704454023,0.011403,87758.0,87744.0,0.00010177]
[1766704454323,0.0114025,87761.0,87744.0,1.77e-06]
[1766704454516,0.15412,87760.0,87744.0,1.77e-06]
[1766704455225,0.0115029,87759.0,87744.0,1.77e-06]
[1766704456213,0.15412,87758.0,87744.0,1.77e-06]
[1766704456726,0.0114031,87757.0,87744.0,1.77e-06]
[1766704457122,0.0572,87756.0,87744.0,1.77e-06]
[1766704457425,0.15412,87756.0,87744.0,1.77e-06]
[1766704458227,0.0114031,87757.0,87744.0,1.77e-06]
[1766704458416,0.15412,87756.0,87744.0,1.77e-06]
[1766704458613,0.0114031,87757.0,87744.0,1.77e-06]
[1766704458812,0.15412,87756.0,87744.0,1.77e-06]
[1766704459021,0.15412,87755.0,87744.0,1.77e-06]
[1766704459226,0.0114034,87755.0,87744.0,1.77e-06]
[1766704459430,0.0114036,87753.0,87744.0,1.77e-06]
[1766704459828,0.0114032,87756.0,87744.0,1.77e-06]
[1766704460031,0.15412,87755.0,87744.0,1.77e-06]
[1766704460224,0.15412,87755.0,87735.0,0.0114058]
[1766704460425,0.15412,87755.0,87730.0,0.1235238]
[1766704460618,0.15412,87755.0,87720.0,0.0572]
[1766704460619,0.011404,87750.0,87725.0,0.04104896]
[1766704460821,0.011404,87750.0,87730.0,0.1235238]
[1766704461233,0.1349278,87750.0,87725.0,0.04104896]
[1766704461429,0.011404,87750.0,87725.0,0.07104896]
[1766704461728,0.0114043,87748.0,87729.0,0.0114066]
[1766704461920,0.00017092,87751.0,87725.0,0.0114071]
[1766704462121,0.0114046,87746.0,87727.0,0.0114069]
[1766704462730,0.1235238,87750.0,87722.0,0.0114075]
[1766704462731,0.0114052,87741.0,87722.0,0.0114075]
[1766704463035,0.0114057,87737.0,87720.0,0.1235238]
[1766704463328,0.0572,87736.0,87723.0,0.0114074]
[1766704463532,0.09692,87735.0,87723.0,0.0114074]
[1766704463830,0.09692,87735.0,87720.0,0.1235238]
[1766704465220,0.09692,87735.0,87724.0,0.0114073]
[1766704465733,0.09692,87735.0,87724.0,0.0114072]
[1766704468025,9.053e-05,87740.0,87731.0,0.0114063]
[1766704468236,0.10848,87739.0,87733.0,0.0114061]
[1766704468534,0.0572,87738.0,87733.0,0.0114061]
[1766704468924,0.0572,87738.0,87730.0,0.1235238]
[1766704469835,0.0572,87738.0,87729.0,0.0114066]
[1766704470821,0.0572,87738.0,87731.0,0.0114063]
[1766704470822,0.01733,87738.0,87731.0,0.0114063]
[1766704471025,0.0572,87737.0,87731.0,0.0114063]
[1766704471234,0.03723,87737.0,87731.0,0.0114063]
[1766704471525,0.09692,87740.0,87731.0,0.0114063]
[1766704471526,0.0572,87736.0,87731.0,0.0114063]
[1766704472138,0.05724,87737.0,87731.0,0.0114063]
[1766704473530,0.05724,87737.0,87728.0,0.0114067]
[1766704474832,0.03727,87736.0,87725.0,0.00017092]
[1766704475038,0.05724,87736.0,87728.0,0.0114067]
[1766704476341,0.05724,87736.0,87725.0,0.01157812]
[1766704477130,0.05724,87735.0,87725.0,0.01157812]
[1766704477931,0.05724,87735.0,87725.0,0.00017092]
[1766704478741,0.05724,87735.0,87725.0,9.2e-07]
[1766704480433,0.05724,87735.0,87715.0,0.06130702]
[1766704480644,0.05724,87735.0,87716.0,0.06130702]
[1766704481046,0.05724,87735.0,87723.0,0.0114074]
[1766704481841,0.05724,87735.0,87725.0,0.0114072]
[1766704482448,0.00017092,87743.0,87717.0,0.06130702]
[1766704482643,0.00017092,87743.0,87733.0,0.011406]
[1766704482946,0.00624,87742.0,87733.0,0.011406]
[1766704485243,0.00624,87742.0,87721.0,0.05724]
[1766704485447,0.00624,87742.0,87730.0,0.0114065]
[1766704486139,0.00624,87742.0,87727.0,0.0114069]
[1766704486543,0.00624,87742.0,87724.0,0.0114073]
[1766704487844,0.00624,87742.0,87726.0,0.011407]
[1766704489250,0.00624,87742.0,87725.0,0.0114071]
[1766704492352,0.00624,87742.0,87728.0,0.0114068]
[1766704494145,0.00624,87742.0,87727.0,0.06130702]
[1766704494755,0.00624,87742.0,87727.0,0.07271392]
[1766704495355,0.00624,87742.0,87729.0,0.0114066]
[1766704499356,0.00624,87742.0,87736.0,0.03079947]
[1766704501359,0.00624,87742.0,87724.0,0.06130702]
[1766704501558,0.0114062,87733.0,87717.0,0.06130702]
[1766704501852,0.15416,87732.0,87718.0,0.011408]
[1766704502058,0.09696,87731.0,87718.0,0.011408]
[1766704502360,0.09696,87731.0,87720.0,0.0114078]
[1766704502657,0.09696,87731.0,87724.0,0.0114073]
[1766704503162,0.09696,87731.0,87721.0,0.0114076]
[1766704503353,0.09696,87731.0,87714.0,0.06130702]
[1766704503354,0.09696,87731.0,87718.0,0.011408]
[1766704503747,0.09696,87731.0,87720.0,0.0114077]
[1766704504359,0.09696,87731.0,87720.0,0.0040177]
[1766704504559,0.09696,87731.0,87700.0,0.0114103]
[1766704504749,0.00017092,87724.0,87702.0,0.0114101]
[1766704504951,0.0686075,87723.0,87701.0,0.0114103]
[1766704505150,0.0572,87723.0,87698.0,0.1083707]
[1766704505354,0.0114078,87721.0,87700.0,0.0114104]
[1766704505562,0.09696,87720.0,87700.0,0.0114104]
[1766704505861,0.09696,87720.0,87705.0,0.0114097]
[1766704506161,0.00017092,87724.0,87698.0,0.09696]
[1766704506459,0.11936,87723.0,87698.0,0.11696]
[1766704507766,0.11936,87723.0,87704.0,0.0114098]
[1766704508168,0.11936,87723.0,87706.0,0.0114096]
[1766704508463,0.11936,87723.0,87698.0,0.09696]
[1766704508654,0.11936,87723.0,87698.0,0.11696]
[1766704509264,0.11936,87723.0,87707.0,0.0114095]
[1766704510766,0.1542,87722.0,87707.0,0.0114095]
[1766704511163,0.1542,87722.0,87698.0,0.13792452]
[1766704511164,0.1542,87722.0,87704.0,0.0114099]
[1766704511365,0.1542,87722.0,87706.0,0.0114096]
[1766704512152,0.1542,87722.0,87698.0,0.13792452]
[1766704512358,0.0114079,87720.0,87701.0,0.0114102]
[1766704512760,0.1542,87722.0,87701.0,0.0114102]
[1766704513159,0.0114077,87721.0,87701.0,0.0114102]
[1766704514468,0.1656077,87722.0,87698.0,0.09696]
[1766704514672,0.1656077,87722.0,87698.0,0.12696]
[1766704514966,0.0114082,87718.0,87699.0,0.0114105]
[1766704515181,0.0114084,87716.0,87697.0,0.04096452]
[1766704515369,0.05724,87715.0,87696.0,0.04096452]
[1766704515559,0.0114087,87714.0,87696.0,0.07096452]
[1766704515762,0.0114092,87710.0,87696.0,0.04096452]
[1766704516068,0.0114091,87711.0,87691.0,0.09696]
[1766704516265,0.09696,87712.0,87691.0,0.1083715]
[1766704516466,0.09696,87712.0,87695.0,0.011411]
[1766704516862,0.00017092,87724.0,87701.0,0.0114102]
[1766704516863,0.0114075,87723.0,87701.0,0.0114102]
[1766704517074,0.1542,87722.0,87710.0,0.0114091]
[1766704517276,0.1542,87722.0,87697.0,0.0114107]
[1766704517474,0.1542,87722.0,87703.0,0.01141]
[1766704517674,0.00017092,87724.0,87703.0,0.01141]
[1766704517876,0.1656075,87723.0,87703.0,0.01141]
[1766704518369,0.1542,87722.0,87703.0,0.01141]
[1766704518564,0.05724,87721.0,87703.0,0.01141]
[1766704518768,0.09696,87720.0,87703.0,0.01141]
[1766704519873,0.09696,87720.0,87705.0,0.0114098]
[1766704523678,0.09696,87720.0,87695.0,0.04096452]
[1766704523679,0.09696,87720.0,87702.0,0.0114101]
[1766704524570,0.09696,87720.0,87704.0,0.0114099]
[1766704524972,0.09696,87720.0,87706.0,0.0114096]
[1766704528184,0.09696,87720.0,87703.0,0.01141]
[1766704528378,0.09696,87720.0,87705.0,0.0114098]
[1766704534389,0.00017092,87724.0,87705.0,0.0114098]
[1766704534784,0.1542,87723.0,87705.0,0.0114098]
[1766704535288,0.00017092,87724.0,87705.0,0.0114098]
[1766704535489,0.1542,87723.0,87705.0,0.0114098]
[1766704537195,0.00017092,87724.0,87713.0,0.1236967]
[1766704537487,0.05724,87733.0,87720.0,0.0114078]
[1766704537696,0.05724,87733.0,87720.0,0.1351045]
[1766704538589,0.05724,87733.0,87716.0,0.04096452]
[1766704538788,0.05724,87733.0,87714.0,0.0114085]
[1766704539694,0.0686462,87733.0,87712.0,0.13792452]
[1766704539879,0.0686462,87733.0,87713.0,0.0114087]
[1766704540080,0.05724,87733.0,87715.0,0.0114084]
[1766704540295,0.05724,87733.0,87712.0,0.14933332]
[1766704540495,0.0114063,87732.0,87712.0,0.13792452]
[1766704541392,0.0114071,87726.0,87712.0,0.09696]
[1766704541592,0.0114074,87724.0,87712.0,0.09696]
[1766704541894,0.0114074,87724.0,87710.0,0.12386772]
[1766704542081,0.05724,87726.0,87710.0,0.12386772]
[1766704544695,0.05724,87726.0,87710.0,0.13527682]
[1766704545286,0.05724,87726.0,87710.0,0.12386772]
[1766704545488,0.05724,87726.0,87711.0,0.0114089]
[1766704546598,0.05724,87726.0,87710.0,0.12386772]
[1766704547697,0.05724,87726.0,87710.0,0.13527682]
[1766704548995,0.05724,87726.0,87705.0,0.09696]
[1766704549890,0.05724,87726.0,87707.0,0.0114095]
[1766704550090,0.05724,87726.0,87710.0,0.1236967]
[1766704550290,0.05724,87726.0,87711.0,0.011409]
[1766704550792,0.05724,87725.0,87711.0,0.011409]
[1766704552899,0.05724,87725.0,87708.0,0.0114093]
[1766704553104,0.05724,87725.0,87705.0,0.1083697]
[1766704553298,0.05724,87725.0,87710.0,0.1236967]
[1766704555293,0.0686472,87725.0,87710.0,0.1236967]
[1766704555801,0.0114075,87723.0,87710.0,0.1236967]
[1766704557106,0.05724,87725.0,87710.0,0.1351058]
[1766704558603,0.05724,87725.0,87710.0,0.1923458]
[1766704559601,0.0114063,87733.0,87712.0,0.0114088]
[1766704559808,0.05724,87734.0,87720.0,0.1236967]
[1766704561601,0.00017102,87735.0,87720.0,0.1236967]
[1766704561807,0.05724,87734.0,87720.0,0.1236967]
[1766704564611,0.05724,87734.0,87716.0,0.05724]
[1766704564811,0.0114071,87726.0,87716.0,0.05724]
[1766704566302,0.0114067,87729.0,87716.0,0.05724]
[1766704567309,0.011407,87727.0,87716.0,0.05724]
[1766704568598,0.0114062,87733.0,87718.0,0.011408]
[1766704568803,0.0114065,87731.0,87716.0,0.05724]
[1766704569008,0.0114068,87729.0,87716.0,0.05724]
[1766704570913,0.0114074,87724.0,87716.0,0.05724]
[1766704571116,0.011407,87727.0,87716.0,0.05724]
[1766704576825,0.0114072,87725.0,87716.0,0.05724]
[1766704578933,0.0114069,87728.0,87716.0,0.05724]
[1766704579532,0.0114065,87731.0,87716.0,0.0686483]
[1766704580531,0.0686461,87734.0,87720.0,0.1236967]
[1766704580838,0.0114064,87731.0,87720.0,0.1236967]
[1766704581233,0.0114064,87731.0,87718.0,0.0114081]
[1766704581536,0.0114064,87731.0,87720.0,0.1236967]
[1766704583340,0.0114067,87729.0,87720.0,0.1236967]
[1766704583733,0.011407,87727.0,87716.0,0.05724]
[1766704584332,0.0114067,87730.0,87716.0,0.05724]
[1766704585539,0.0114069,87728.0,87716.0,0.05724]
[1766704587437,0.0114069,87728.0,87716.0,0.0686484]
[1766704587632,0.0114065,87731.0,87716.0,0.0686484]
[1766704588434,0.0114065,87731.0,87720.0,0.1236967]
[1766704589136,0.0114053,87740.0,87720.0,0.1236967]
[1766704589343,0.0114053,87740.0,87730.0,0.1236967]
[1766704589543,0.0572,87742.0,87730.0,0.1236967]
[1766704590039,0.0572,87741.0,87730.0,0.1236967]
[1766704590243,0.0114057,87737.0,87727.0,0.00017102]
[1766704591945,0.0114062,87733.0,87727.0,0.00017102]
[1766704595148,0.0114065,87731.0,87727.0,0.00017102]
[1766704595538,0.0114065,87731.0,87723.0,0.0572]
[1766704596649,0.0114061,87734.0,87723.0,0.0572]
[1766704597555,0.0114061,87734.0,87720.0,0.0114078]
[1766704602755,0.0686057,87737.0,87722.0,0.0114075]
[1766704605560,0.0572,87737.0,87727.0,0.0114069]
[1766704605757,0.0572,87737.0,87719.0,0.0572]
[1766704605758,0.0572,87741.0,87721.0,0.0307781]
[1766704606150,0.0572,87741.0,87726.0,0.011407]
[1766704607762,0.0572,87741.0,87728.0,0.0114067]
[1766704609864,0.0572,87741.0,87725.0,0.0114071]
[1766704613556,0.0572,87741.0,87727.0,0.0114069]
[1766704615367,0.1106443,87743.0,87723.0,0.0307781]
[1766704615368,0.0022794,87743.0,87723.0,0.0307781]
[1766704615754,0.0022794,87743.0,87731.0,0.0114063]
[1766704615950,0.0022794,87743.0,87733.0,0.0114061]
[1766704616855,0.0022794,87743.0,87735.0,0.0114059]
[1766704617165,0.05737102,87744.0,87732.0,0.0114062]
[1766704617864,0.05737102,87744.0,87724.0,0.0121843]
[1766704618065,0.05737102,87744.0,87720.0,0.05237232]
[1766704618264,0.05737102,87744.0,87732.0,0.0114062]
[1766704620866,0.00017102,87744.0,87732.0,0.0114062]
[1766704621064,0.06136118,87764.0,87733.0,0.09696]
[1766704621370,0.1655623,87763.0,87733.0,0.09696]
[1766704621869,0.15416,87763.0,87733.0,0.09696]
[1766704622067,0.01157412,87757.0,87739.0,0.00017102]
[1766704623258,0.01157412,87757.0,87740.0,0.0114052]
[1766704624566,0.01157412,87757.0,87739.0,0.00017102]
[1766704624567,0.00017102,87757.0,87739.0,0.00017102]
[1766704624758,0.0114038,87752.0,87739.0,1.02e-06]
[1766704624958,0.0572,87751.0,87739.0,1.02e-06]
[1766704632667,0.0114036,87753.0,87739.0,1.02e-06]
[1766704632873,0.15416,87752.0,87739.0,1.02e-06]
[1766704633576,0.0114036,87753.0,87739.0,1.02e-06]
[1766704633776,0.15416,87752.0,87739.0,1.02e-06]
[1766704634374,0.0114038,87751.0,87739.0,1.02e-06]
[1766704634574,0.0114041,87749.0,87739.0,1.02e-06]
[1766704635682,0.1655638,87752.0,87739.0,1.02e-06]
[1766704636769,0.011404,87750.0,87739.0,1.02e-06]
[1766704637881,0.15416,87752.0,87739.0,1.02e-06]
[1766704638880,0.0114039,87751.0,87739.0,1.02e-06]
[1766704640077,0.15416,87752.0,87739.0,1.02e-06]
[1766704640266,0.011404,87750.0,87724.0,0.04096452]
[1766704640467,0.0114058,87737.0,87718.0,0.011408]
[1766704640776,0.0114059,87735.0,87718.0,0.011408]
[1766704640977,0.0114062,87733.0,87716.0,0.09696]
[1766704641378,0.01157722,87733.0,87716.0,0.09696]
[1766704641872,0.00017102,87733.0,87716.0,0.09696]
[1766704642066,0.0114069,87728.0,87709.0,0.0114092]
[1766704642570,0.0114064,87731.0,87711.0,0.0114089]
[1766704643175,0.00017102,87733.0,87711.0,0.0114089]
[1766704643176,0.0114068,87729.0,87711.0,0.0114089]
[1766704643878,0.0114063,87732.0,87713.0,0.01368878]
[1766704644879,0.0114063,87732.0,87713.0,0.00228018]
[1766704644880,0.0224,87732.0,87713.0,0.00228018]
[1766704645075,0.00017102,87733.0,87713.0,0.00228018]
[1766704646292,0.00017102,87733.0,87721.0,0.0114076]
[1766704647482,0.0114048,87744.0,87726.0,0.011407]
[1766704647682,0.0114029,87758.0,87713.0,0.00228018]
[1766704647683,0.15416,87743.0,87718.0,0.09696]
[1766704647885,0.0114056,87738.0,87719.0,0.0114079]
[1766704648588,0.00017102,87737.0,87720.0,0.00017102]
[1766704653291,0.00017102,87737.0,87725.0,0.0114071]
[1766704654294,0.00017102,87737.0,87722.0,0.0114076]
[1766704659893,0.00017102,87737.0,87724.0,0.0114073]
[1766704662378,0.00017102,87737.0,87726.0,0.011407]
[1766704664293,0.00017102,87737.0,87720.0,0.00017102]
[1766704664493,0.00017102,87737.0,87720.0,0.12380967]
[1766704664697,0.00017102,87737.0,87726.0,0.011407]
[1766704665489,0.00017102,87737.0,87723.0,0.0114074]
[1766704665689,0.00017102,87737.0,87725.0,0.0114071]
[1766704672897,0.12363865,87750.0,87727.0,0.12363865]
[1766704672898,0.09696,87747.0,87727.0,0.12363865]
[1766704673105,0.09696,87747.0,87731.0,0.0114064]
[1766704673503,0.0114031,87757.0,87738.0,0.0114054]
[1766704673704,0.09696,87756.0,87740.0,0.13504385]
[1766704673905,0.09713102,87756.0,87740.0,0.0114052]
[1766704674607,0.09713102,87756.0,87739.0,0.00017102]
[1766704675108,0.09713102,87756.0,87735.0,0.04977662]
[1766704675707,0.10853422,87756.0,87735.0,0.04977662]
[1766704676108,0.10853422,87756.0,87737.0,0.00017102]
[1766704676515,0.0114049,87743.0,87721.0,0.0686077]
[1766704676698,0.0686045,87746.0,87727.0,0.0114068]
[1766704677005,0.0686045,87746.0,87724.0,0.0114073]
[1766704677502,0.0114048,87744.0,87724.0,0.0114073]
[1766704678008,0.0572,87746.0,87721.0,0.0572]
[1766704678510,0.0114055,87738.0,87721.0,0.0572]
[1766704678705,0.01157652,87738.0,87721.0,0.0572]
[1766704679112,0.01157652,87738.0,87720.0,0.12363865]
[1766704679311,0.01157652,87738.0,87721.0,0.0572]
[1766704680617,0.0114059,87735.0,87721.0,0.0572]
[1766704682222,0.0114039,87751.0,87731.0,0.0114063]
[1766704682412,0.0114042,87749.0,87731.0,0.0114063]
[1766704683306,0.00017102,87749.0,87731.0,0.01157732]
[1766704686903,0.00017102,87749.0,87735.0,0.0114058]
[1766704687098,0.00017102,87749.0,87730.0,0.11221547]
[1766704687306,0.00017102,87749.0,87730.0,0.12363865]
[1766704687911,0.00017102,87749.0,87714.0,0.06141618]
[1766704688120,0.12363865,87740.0,87724.0,0.0114072]
[1766704688304,0.011405,87742.0,87724.0,0.0114072]
[1766704688704,0.0572,87743.0,87726.0,0.0114069]
[1766704690217,0.0572,87743.0,87722.0,0.0114075]
[1766704691904,0.011405,87742.0,87722.0,0.0114075]
[1766704693425,0.0572,87743.0,87722.0,0.0114075]
[1766704693714,0.0572,87743.0,87724.0,0.0114072]
[1766704694320,0.0114046,87746.0,87724.0,0.0114072]
[1766704697616,0.0114046,87746.0,87726.0,0.011407]
[1766704700627,0.05733102,87749.0,87730.0,0.12363865]
[1766704700922,0.05733102,87749.0,87733.0,0.0114061]
[1766704701926,0.05733102,87749.0,87734.0,0.01139]
[1766704703026,0.0114045,87746.0,87734.0,0.01139]
[1766704703927,0.06873512,87749.0,87734.0,0.01139]
[1766704704136,0.06873512,87749.0,87734.0,0.022796]
[1766704704733,0.06873512,87749.0,87734.0,0.01139]
[1766704705135,0.0114044,87747.0,87734.0,0.01139]
[1766704708245,0.0114047,87745.0,87734.0,0.01139]
[1766704709248,0.05733102,87749.0,87734.0,0.01139]
[1766704709249,0.12363865,87744.0,87734.0,0.01139]
[1766704709434,0.0114054,87739.0,87734.0,0.01139]
[1766704709633,0.0114054,87739.0,87731.0,0.05716]
[1766704710342,0.05733102,87749.0,87720.0,0.09696]
[1766704710343,0.12363865,87741.0,87720.0,0.09696]
[1766704710542,0.011407,87727.0,87720.0,0.15412]
[1766704710736,0.12363865,87730.0,87716.0,0.0114083]
[1766704710937,0.00017102,87732.0,87717.0,0.05716]
[1766704711436,0.05716,87739.0,87725.0,0.0114071]
[1766704713348,0.00017102,87741.0,87725.0,0.0114071]
[1766704713549,0.05733102,87741.0,87730.0,0.12363865]
[1766704713846,0.05733102,87741.0,87720.0,0.12363865]
[1766704714044,0.05733102,87741.0,87717.0,0.09823029]
[1766704715349,0.06873622,87741.0,87721.0,0.0114076]
[1766704717746,0.05733102,87741.0,87717.0,0.09823029]
[1766704719251,0.05733102,87741.0,87725.0,0.0114071]
[1766704719549,0.05733102,87741.0,87726.0,0.05716]
[1766704721452,0.06873622,87741.0,87726.0,0.05716]
[1766704721643,0.01157622,87741.0,87726.0,0.05716]
[1766704728452,0.01157622,87741.0,87726.0,0.068567]
[1766704730548,0.00017102,87741.0,87726.0,0.05716]
[1766704731049,0.00017102,87741.0,87726.0,0.068567]
[1766704732858,0.00017102,87741.0,87726.0,0.05716]
[1766704733053,0.0114055,87738.0,87726.0,0.05716]
[1766704741659,0.0114061,87734.0,87726.0,0.05716]
[1766704742565,0.0114059,87735.0,87726.0,0.05716]
[1766704744666,0.0114059,87735.0,87721.0,0.0114077]
[1766704744862,0.0114059,87735.0,87725.0,0.05716]
[1766704745067,0.0114059,87735.0,87721.0,0.0114077]
[1766704745365,0.0114059,87735.0,87722.0,0.05716]
[1766704747369,0.0114056,87738.0,87722.0,0.05716]
[1766704751369,0.0114056,87738.0,87723.0,0.0114074]
[1766704755474,0.01157622,87741.0,87725.0,0.0114071]
[1766704756175,0.00017102,87741.0,87729.0,0.0114066]
[1766704757071,0.0685647,87745.0,87729.0,0.0114066]
[1766704757372,0.09696,87744.0,87729.0,0.0114066]
[1766704757974,0.0114049,87743.0,87726.0,0.011407]
[1766704758169,0.01157592,87743.0,87726.0,0.011407]
[1766704761176,0.01157592,87743.0,87728.0,0.0114067]
[1766704762282,0.00017102,87743.0,87730.0,0.0114065]
[1766704763179,0.00017102,87743.0,87732.0,0.0114062]
[1766704763374,0.00017102,87743.0,87734.0,0.011406]
[1766704765079,0.00017102,87743.0,87728.0,0.0114067]
[1766704766266,0.01157592,87743.0,87728.0,0.0114067]
[1766704766880,0.0114055,87738.0,87725.0,0.09696]
[1766704767081,0.00017102,87743.0,87725.0,0.09696]
[1766704767082,0.0114057,87737.0,87725.0,0.09696]
[1766704767273,0.0114057,87737.0,87721.0,0.0114076]
[1766704767486,0.0114057,87737.0,87722.0,0.05716]
[1766704767674,0.0114057,87737.0,87721.0,0.0114076]
[1766704767874,0.0114057,87737.0,87722.0,0.05716]
[1766704768173,0.0114057,87737.0,87723.0,0.0114074]
[1766704768575,0.0114053,87740.0,87723.0,0.0114074]
[1766704769477,0.0114056,87738.0,87722.0,0.05716]
[1766704769784,0.0114058,87736.0,87722.0,0.05716]
[1766704773489,0.0114058,87736.0,87722.0,0.0685675]
[1766704774593,0.0114055,87739.0,87722.0,0.0685675]
[1766704776888,0.0114057,87737.0,87722.0,0.0685675]
[1766704777490,0.0114059,87735.0,87722.0,0.0685675]
[1766704777693,0.0114056,87738.0,87722.0,0.0685675]
[1766704778796,0.12365456,87740.0,87722.0,0.0685675]
[1766704778797,0.0114058,87736.0,87722.0,0.0685675]
[1766704780597,0.0114061,87734.0,87722.0,0.05716]
[1766704781200,0.0114057,87737.0,87722.0,0.05716]
[1766704782401,0.0114057,87737.0,87723.0,0.0114074]
[1766704782806,0.0114051,87741.0,87726.0,0.011407]
[1766704783304,0.0114054,87739.0,87726.0,0.011407]
[1766704786111,0.0114054,87739.0,87723.0,0.0114074]
[1766704786814,0.0114054,87739.0,87725.0,0.0114072]
[1766704788100,0.12365456,87740.0,87725.0,0.0114072]
[1766704788306,0.13505986,87740.0,87725.0,0.0114072]
[1766704789313,0.0114053,87740.0,87725.0,0.0114072]
[1766704791118,0.05716,87741.0,87725.0,0.0114072]
[1766704791306,0.0685652,87741.0,87725.0,0.0114072]
[1766704792809,0.0685652,87741.0,87727.0,0.0114069]
[1766704794018,0.0685652,87741.0,87724.0,0.0114073]
[1766704796420,0.0685652,87741.0,87726.0,0.011407]
[1766704796719,0.05716,87741.0,87722.0,0.05716]
[1766704796922,0.05716,87741.0,87730.0,0.0114065]
[1766704801328,0.05716,87741.0,87722.0,0.09823029]
[1766704801329,0.05716,87741.0,87727.0,0.0114069]
[1766704801837,0.05716,87741.0,87724.0,0.0114073]
[1766704802631,0.05716,87741.0,87726.0,0.011407]
[1766704802824,0.05716,87741.0,87725.0,0.0114071]
[1766704804736,0.0114058,87736.0,87722.0,0.09823029]
[1766704805036,0.0114058,87736.0,87722.0,0.05716]
[1766704805537,0.0114061,87734.0,87722.0,0.05716]
[1766704805735,0.0114061,87734.0,87720.0,0.04107029]
[1766704805930,0.0114057,87737.0,87720.0,0.10963809]
[1766704806527,0.0114059,87735.0,87720.0,0.0685678]
[1766704806938,0.09713102,87743.0,87716.0,1e-08]
[1766704806939,0.12365456,87730.0,87716.0,1e-08]
[1766704807135,0.0114064,87731.0,87706.0,0.0114096]
[1766704807136,0.0114074,87724.0,87706.0,0.0114096]
[1766704807431,0.0114074,87724.0,87705.0,0.0114097]
[1766704807629,0.0114084,87717.0,87703.0,0.05716]
[1766704808332,0.00017102,87719.0,87703.0,0.05716]
[1766704809332,0.0114082,87718.0,87703.0,0.05716]
[1766704810723,0.00017102,87719.0,87703.0,0.05716]
[1766704810924,0.00017102,87719.0,87703.0,0.06857]
[1766704818632,0.01157912,87719.0,87703.0,0.06857]
[1766704820436,0.0114091,87711.0,87703.0,0.05716]
[1766704820637,0.0114104,87701.0,87694.0,0.00014436]
[1766704820846,0.0114107,87699.0,87690.0,0.05716]
[1766704821041,0.0114111,87695.0,87683.0,0.00228096]
[1766704821640,0.12365456,87693.0,87683.0,0.00228096]
[1766704821845,0.16570172,87698.0,87678.0,0.0114132]
[1766704822046,0.16570172,87698.0,87680.0,0.0114129]
[1766704822847,0.05716,87697.0,87680.0,0.0114129]
[1766704823144,0.05716,87697.0,87673.0,0.05716]
[1766704823358,0.12365456,87690.0,87656.0,0.06141618]
[1766704823647,0.0114138,87675.0,87664.0,0.05716]
[1766704823840,0.0114133,87678.0,87664.0,0.05716]
[1766704824549,0.0114133,87678.0,87663.0,0.09696]
[1766704824550,0.0114132,87679.0,87663.0,0.09696]
[1766704825749,0.0114136,87676.0,87663.0,0.09696]
[1766704825948,0.0001326,87675.0,87663.0,0.09696]
[1766704826353,0.0001326,87675.0,87659.0,0.05716]
[1766704826742,0.0114153,87663.0,87650.0,0.097]
[1766704826951,0.0114153,87663.0,87651.0,0.05716]
[1766704827142,0.0114149,87667.0,87651.0,0.05716]
[1766704827951,0.0114149,87667.0,87650.0,0.097]
[1766704827952,0.12365456,87661.0,87644.0,0.0114176]
[1766704828155,0.00017112,87661.0,87644.0,0.0114176]
[1766704828447,0.00017112,87661.0,87646.0,0.0114174]
[1766704829550,0.05733112,87661.0,87646.0,0.0114174]
[1766704830453,0.00017112,87661.0,87646.0,0.0114174]
[1766704830761,0.05716,87664.0,87650.0,0.12365456]
[1766704831055,0.05716,87664.0,87652.0,0.0114166]
[1766704832860,0.00017112,87667.0,87656.0,0.0114161]
[1766704833062,0.05716,87666.0,87652.0,0.0114166]
[1766704835465,0.05716,87665.0,87652.0,0.0114166]
[1766704836970,0.05716,87665.0,87649.0,0.01158812]